Cogmind - Beta 10.2 @@@ ROGUE MODE // 2021.06.15 @ 21:04:48 Player: the cat Result: Destroyed by B-99 Colossus with Multirail Performance ------------- Evolutions (9) 4500 Regions Visited (27) 5400 Robots Destroyed (204) 1020 Value Destroyed (14180) 14180 Prototype IDs (41) 820 Alien Tech Used (0) 0 Bonus (7719) 7719 TOTAL SCORE: 33639 Bonus ------- High Alert Combat Kills 77 Follower Combat Kills 3158 Entered Garrisons 1600 Used RIF Installer 4000 Aligned with FarCom 300 Friendly Fire -1416 Cogmind --------- Core Integrity 0/1600 Matter 34/300 Energy 100/100 System Corruption 12% Temperature Cool (0) Movement Core (50) Location -1/Access Parts ------- > --- POWER (1) -------- (None) > --- PROPULSION (4) --- (None) > --- UTILITY (17) ----- Advanced Cryofiber Web > --- WEAPON (3) ------- (None) > --- INVENTORY (4) ---- Impulse Thruster Heavy Disruptor Cannon Advanced Remote Datajack Peak State ------------ > --- POWER ------------ Quantum Reactor > --- PROPULSION ------- Wheel Wheel Armored Huge Wheel > --- UTILITY ---------- Experimental Cooling System Medium Storage Unit Large Storage Unit Large Storage Unit High-capacity Storage Unit Advanced Signal Interpreter Advanced Targeting Computer Heavy Armor Plating Heavy Reactive Plating Advanced System Shield Advanced System Shield Relay Coupler [Swarmer] Relay Coupler [Brawler] Relay Coupler [Duelist] Relay Coupler [Specialist] > --- WEAPON ----------- Nova Cannon Enhanced Nova Cannon Enhanced Nova Cannon > --- INVENTORY -------- Particle Reactor Light Quantum Reactor Wheel Improved Coolant Injector Energy Well Advanced Transmission Jammer Relay Coupler [ARC] Relay Coupler [Brawler] Relay Coupler [Sentry] Relay Coupler [Sentry] Gamma Rifle Gamma Rifle Enhanced Nova Cannon Enhanced Nova Cannon KE Penetrator Railgun Hypervelocity Railgun Heavy Gauss Cannon Heavy Gauss Cannon Gamma Bomb Array Gamma Bomb Array Enhanced Gamma Bomb Array Heavy Rocket Launcher Heavy Rocket Launcher Fusion Bomb Launcher Advanced Remote Datajack Advanced Remote Datajack [Rating: 123] Favorites ----------- Power Light Angular Momentum Engine Engine Light Angular Momentum Engine Power Core Fission Core Reactor Antimatter Reactor Propulsion Armored Huge Wheel Treads Biometal Heavy Treads Wheel Armored Huge Wheel Flight Unit Impulse Thruster Array Utility High-capacity Storage Unit Device Experimental Cooling System Storage High-capacity Storage Unit Processor Advanced Targeting Computer Hackware Relay Coupler [Swarmer] Protection Medium Insulated Plating Weapon Improved Remote Datajack Energy Gun Medium Laser Energy Cannon Cooled Plasma Cannon Ballistic Gun Flak Gun Ballistic Cannon Improved Light Cannon Launcher Heavy Rocket Launcher Special Weapon Improved Remote Datajack Impact Weapon Heavy Flail Slashing Weapon Chainsword Piercing Weapon Enhanced Force Lance Special Melee Weapon Improved Datajack Build | -11 -10 -10 -10 -9 -8 -8 -8 -7 -7 -7 -7 -6 -6 -5 -5 -5 -5 -4 -4 -4 -4 -4 -3 -2 -1 -1 -1 ------- Run | Scr Mat Min Exi Min Mat Gar Mat Fac Gar Fac Gar Fac Gar Fac Gar Fac Gar Fac Gar Fac Upp Upp Res Res Acc Gar Acc Slots Evolved 18 | . . . . . 4 . . 2 . . . 2 . 2 . . . 2 . . . . 2 2 2 . . Power . | . . . . . . . . . . . . . . . . . . . . . . . . . . . . Propulsion 2 | . . . . . . . . . . . . . . . . . . . . . . . . . 2 . . Utility 15 | . . . . . 4 . . 2 . . . 2 . 2 . . . 2 . . . . 2 1 . . . Weapon 1 | . . . . . . . . . . . . . . . . . . . . . . . . 1 . . . Parts Attached 462 | 6 9 3 . 3 32 5 3 2 5 13 32 1 28 6 23 12 17 39 14 37 8 3 45 78 2 27 9 Power 29 | 1 2 1 . 1 2 . . . 1 1 2 . 2 . . . 1 7 . 1 . . 3 3 . 1 . Engine 12 | 1 2 1 . 1 1 . . . 1 1 1 . 2 . . . . 1 . . . . . . . . . Core 7 | . . . . . 1 . . . . . 1 . . . . . 1 2 . 1 . . 1 . . . . Reactor 10 | . . . . . . . . . . . . . . . . . . 4 . . . . 2 3 . 1 . Propulsion 36 | 2 2 1 . . 7 . . . . 1 1 . 1 . . . 1 1 3 1 . . 5 2 2 4 2 Treads 4 | . . . . . . . . . . . . . . . . . . . . . . . . . . 2 2 Leg . | . . . . . . . . . . . . . . . . . . . . . . . . . . . . Wheel 31 | 2 2 1 . . 7 . . . . 1 1 . 1 . . . 1 1 3 1 . . 4 2 2 2 . Hover . | . . . . . . . . . . . . . . . . . . . . . . . . . . . . Flight 1 | . . . . . . . . . . . . . . . . . . . . . . . 1 . . . . Utility 207 | 1 2 . . . 14 2 . 2 3 6 9 1 12 4 12 7 8 19 10 30 4 1 18 32 . 9 1 Device 46 | . . . . . 6 . . . . 1 1 . . 2 . 2 1 3 . 11 1 . 4 11 . 2 1 Storage 12 | 1 2 . . . 1 1 . . . . . . . . . . . 2 . . 1 1 1 2 . . . Processor 8 | . . . . . . . . . 1 . . . . . . . . 1 . 1 . . 3 2 . . . Hackware 67 | . . . . . . . . 1 1 3 5 . 6 1 9 1 5 6 8 6 . . 4 6 . 5 . Protection 74 | . . . . . 7 1 . 1 1 2 3 1 6 1 3 4 2 7 2 12 2 . 6 11 . 2 . Artifact . | . . . . . . . . . . . . . . . . . . . . . . . . . . . . Weapon 190 | 2 3 1 . 2 9 3 3 . 1 5 20 . 13 2 11 5 7 12 1 5 4 2 19 41 . 13 6 Energy Gun 12 | 1 1 . . 1 1 . . . . . 1 . . . . . . . . . . . . 3 . 2 2 Energy Cannon 48 | . . . . . 4 . 1 . . 2 2 . 2 . 1 3 1 4 1 3 1 1 6 14 . 2 . Ballistic Gun 52 | 1 2 1 . . 3 2 2 . . . 11 . 5 2 3 . 2 2 . . 1 1 5 9 . . . Ballistic Cannon 9 | . . . . 1 . . . . . . . . . . . . 1 . . . . . 2 2 . 2 1 Launcher 18 | . . . . . . 1 . . . 1 1 . 1 . . 1 2 . . . . . . 4 . 4 3 Special Weapon 32 | . . . . . . . . . . 1 3 . 4 . 3 1 1 5 . 1 2 . 3 5 . 3 . Impact Weapon 1 | . . . . . 1 . . . . . . . . . . . . . . . . . . . . . . Slashing Weapon 6 | . . . . . . . . . . . 1 . . . 2 . . 1 . 1 . . 1 . . . . Piercing Weapon 6 | . . . . . . . . . . . . . . . . . . . . . . . 2 4 . . . Special Melee Weapon 6 | . . . . . . . . . 1 1 1 . 1 . 2 . . . . . . . . . . . . Unidentified Prototypes 11 | . . . . . 2 . . . . . . . . . . 3 . 1 . 1 . . . 4 . . . Parts Lost 125 | . 5 1 . 1 4 1 . . 2 2 5 . 8 . 2 . 4 14 3 9 3 . 11 26 . 21 3 Power 17 | . 1 1 . 1 1 . . . 1 1 2 . 2 . . . 1 2 . . . . 2 1 . 1 . Propulsion 19 | . 1 . . . 2 . . . . . 1 . 1 . . . 1 1 2 . . . . 2 . 6 2 Utility 50 | . . . . . . 1 . . . . 2 . 3 . 1 . 1 9 . 7 2 . 6 13 . 5 . Weapon 39 | . 3 . . . 1 . . . 1 1 . . 2 . 1 . 1 2 1 2 1 . 3 10 . 9 1 Highest Loss Streak 13 | . 2 1 . 1 1 1 . . 1 2 2 . 4 . 1 . 1 6 2 3 2 . 10 10 . 13 2 Average Slot Usage (%) 89 | . 92 95 100 99 94 90 90 92 92 91 85 86 88 87 93 93 93 77 89 99 95 93 93 85 88 71 10 Engine 4 | . 13 14 14 13 5 9 9 7 7 6 5 . 4 5 5 5 2 . . . . . . . . . . Core 1 | . . . . . 3 . . . . . . 6 1 . . . 2 2 . 1 5 5 2 . . . . Reactor 1 | . . . . . . . . . . . . . . . . . . 2 5 3 . . . 3 4 3 . Wheel 9 | . 23 23 28 28 16 9 9 7 7 7 7 6 6 5 5 5 5 5 7 10 10 10 8 5 12 6 . Device 2 | . . . . . 8 1 . . . . 2 . . 2 1 . 2 2 3 4 5 5 5 6 4 5 3 Storage 23 | . 26 28 28 28 27 34 36 30 30 30 30 26 26 23 23 23 23 20 21 21 21 25 20 17 16 13 . Processor 2 | . . . . . . . . . . . . . . . . . . 1 . . 5 5 12 13 8 4 . Hackware 21 | . . . . . . . . 7 9 19 16 26 27 29 38 41 40 28 34 40 27 21 19 18 24 26 . Protection 7 | . . . . . 15 18 18 23 20 10 5 6 7 7 4 4 2 4 7 5 10 10 9 7 8 3 . Energy Cannon 4 | . . . . . 13 7 1 . . 6 2 . 3 3 . 4 3 3 5 4 5 5 3 4 12 5 . Ballistic Gun 4 | . 17 28 28 2 1 4 16 15 12 . 9 6 3 2 4 . 1 1 . . . . 1 3 . . . Special Weapon 2 | . . . . . . . . . . . 2 6 2 3 3 4 . 4 5 4 4 5 1 1 . 2 . Naked Turns 61 | . . . . . . . . . . . . . . . . . . . . . . . . . . 55 6 Heaviest Build 182 | 11 71 69 69 75 130 157 150 154 154 153 173 144 160 158 157 157 164 178 178 158 158 130 146 182 181 181 7 Greatest Support 75 | 32 32 26 26 26 28 28 28 28 28 28 28 28 28 28 28 28 28 28 28 32 32 32 32 28 48 56 75 Greatest Overweight (x) 12 | . 6 6 2 2 12 5 5 5 5 5 6 5 5 5 5 5 5 6 9 5 4 4 4 7 3 7 2 Average Overweight (x) 4 | . 3 3 2 2 4 4 5 5 5 5 4 5 4 5 5 5 5 4 6 4 4 4 3 4 3 1 . Largest Inventory Capacity 38 | 6 20 20 20 20 28 36 36 36 36 36 36 36 36 36 36 36 36 36 34 34 38 30 36 32 28 28 4 Average Capacity 31 | 5 18 20 20 20 28 34 36 36 36 36 36 36 36 36 36 36 36 34 34 34 30 30 29 28 28 24 4 Most Carried 36 | 3 16 20 20 20 28 34 36 35 36 36 36 36 36 36 36 36 36 36 34 34 31 30 30 28 25 28 4 Average Carried 29 | 1 10 16 19 19 25 30 35 34 34 34 34 35 34 35 35 35 35 31 32 32 29 29 28 26 24 21 3 Final Capacity 36 | 6 20 20 20 20 28 36 36 36 36 36 36 36 36 36 36 36 36 34 34 34 30 30 28 28 28 28 4 Final Carried 36 | 2 14 20 20 20 28 34 36 34 31 33 36 36 36 36 36 35 36 33 34 31 28 30 28 26 25 28 4 Class Distribution -------------------- 55% | Botlord-Mutant 19% | Bothacker-Mutant 18% | Hauler-Mutant Dominant Class ---------------- Hauler-Mutant | -10/Materials Hauler-Mutant | -10/Mines Hauler-Mutant | -10/Exiles Hauler-Mutant | -9/Mines Hauler-Mutant | -8/Materials Hauler-Mutant | -8/Garrison Bothacker-Mutant | -8/Materials Bothacker-Mutant | -7/Factory Bothacker-Mutant | -7/Garrison Bothacker-Mutant | -7/Factory Bothacker-Mutant | -7/Garrison Bothacker-Mutant | -6/Factory Botlord-Mutant | -6/Garrison Botlord-Mutant | -5/Factory Botlord-Mutant | -5/Garrison Botlord-Mutant | -5/Factory Botlord-Mutant | -5/Garrison Botlord-Mutant | -4/Factory Botlord-Mutant | -4/Garrison Botlord-Mutant | -4/Factory Botlord-Mutant | -4/Upper Caves Botlord-Mutant | -4/Upper Caves Botlord-Mutant | -3/Research Botlord-Mutant | -2/Research Botlord-Tank | -1/Access Botlord-Mutant | -1/Garrison Mutant | -1/Access Resources | -11 -10 -10 -10 -9 -8 -8 -8 -7 -7 -7 -7 -6 -6 -5 -5 -5 -5 -4 -4 -4 -4 -4 -3 -2 -1 -1 -1 ----------- Run | Scr Mat Min Exi Min Mat Gar Mat Fac Gar Fac Gar Fac Gar Fac Gar Fac Gar Fac Gar Fac Upp Upp Res Res Acc Gar Acc Matter Collected 8655 | 269 166 180 . 175 393 140 90 . 87 170 699 . 478 223 341 225 389 426 479 450 336 172 823 1522 . 288 134 Remotely . | . . . . . . . . . . . . . . . . . . . . . . . . . . . . Salvage Created 11198 | 86 247 44 . 143 758 333 103 . 21 272 770 . 291 52 120 26 605 355 741 574 141 88 1084 3949 . 395 . Parts 521 | 2 17 8 . 12 34 17 9 . 3 15 21 . 13 3 4 2 11 19 22 23 8 1 42 209 . 24 2 Haulers Intercepted 4 | . . . . . 2 . 1 . . . . . . . . . . . . . . . 1 . . . . Recyclers Shooed 5 | . 2 . . . 1 . . . . . . . . . . . . . . . . . 1 1 . . . Parts Field Recycled . | . . . . . . . . . . . . . . . . . . . . . . . . . . . . Retrieved Matter . | . . . . . . . . . . . . . . . . . . . . . . . . . . . . Parts Self-Destructed 10 | . . . . . . . . . . . . . . . . . . . . . 7 3 . . . . . Prevented 1 | . . . . . . . . . . . . . . . . . . . . . 1 . . . . . . Kills | -11 -10 -10 -10 -9 -8 -8 -8 -7 -7 -7 -7 -6 -6 -5 -5 -5 -5 -4 -4 -4 -4 -4 -3 -2 -1 -1 -1 ------- Run | Scr Mat Min Exi Min Mat Gar Mat Fac Gar Fac Gar Fac Gar Fac Gar Fac Gar Fac Gar Fac Upp Upp Res Res Acc Gar Acc Combat Hostiles Destroyed 164 | . 5 3 . 5 12 9 2 . 1 7 17 . 5 1 2 . 14 6 3 10 2 1 13 39 . 7 . Melee 4 | . . . . . . . . . . . . . . . . . . . . . . . . 4 . . . Guns 53 | . 5 3 . 1 7 3 2 . 1 . 8 . 2 1 2 . 2 . . . 1 . 4 11 . . . Cannons 73 | . . . . 4 4 1 . . . 5 4 . . . . . 7 5 3 9 . 1 8 17 . 5 . AOE 23 | . . . . . . 5 . . . 2 4 . 3 . . . 5 . . 1 . . . 2 . 1 . Classes Destroyed 16 | 1 3 . . 1 2 . . . . 2 . . 1 . . . 1 1 2 1 . . . 1 . . . Worker 6 | . . . . . . . . . . 1 . . . . . 1 . . . 1 . . 1 2 . . . Builder 9 | . . . . . . . . . . . . . . . . . . . . 1 . . 1 6 . . 1 Hauler 4 | . . . . . 2 . 1 . . . . . . . . . . . . . . . 1 . . . . Recycler 9 | 1 1 . . . 2 . . . . . . . . . . . . . . . . . 1 4 . . . Operator 2 | . . . . . . . . . . . . . . . . . . 1 . . . . . 1 . . . Watcher 5 | . 1 . . . . . . . . . . . . . . . . . . . . . . 4 . . . Swarmer 26 | . 2 3 . . 3 3 1 . 1 2 . . 1 . . . . . . . . . 4 4 . 2 . Saboteur 2 | . . . . . . . . . . . . . . . . . . . 1 1 . . . . . . . Grunt 56 | . 3 . . 4 4 4 1 . . 2 14 . 3 . 1 . 13 . 2 1 . . . 4 . . . Brawler 1 | . . . . . . . . . . . . . . . . . 1 . . . . . . . . . . Duelist 4 | . . . . 1 . . . . . . . . . . 1 . . . . 1 1 . . . . . . Sentry 29 | . . . . . 5 2 . . . 1 3 . 1 . . . . 1 . 2 . 1 3 9 . 1 . Specialist 1 | . . . . . . . . . . . . . 1 . . . . . . . . . . . . . . Hunter 8 | . . . . . . . . . . . . . . . . . . . . . . . . 7 . 1 . Programmer 41 | . . . . . . . . . . 2 . . . 1 . . . 5 . 7 1 . 6 16 . 3 . Behemoth 1 | . . . . . . . . . . . . . . . . . . . 1 . . . . . . . . Best Kill Streak 7 | 1 2 3 . 3 3 3 2 . 1 2 6 . 3 1 1 1 4 2 2 2 2 1 3 7 . 4 1 Combat Bots Only 6 | . 2 3 . 3 2 3 2 . 1 2 6 . 3 1 1 . 4 2 2 2 2 1 3 6 . 4 . Max Kills in Single Turn 4 | 1 1 1 . 1 1 3 1 . 1 2 1 . 2 1 1 1 2 1 1 1 1 1 1 4 . 1 1 Gunslinging . | . . . . . . . . . . . . . . . . . . . . . . . . . . . . Exploded 3 | . . . . . . 3 . . . 2 1 . 1 . . . 2 . . 1 . . . 1 . 1 . Melee 1 | . . . . . . . . . . . . . . . . . . . . . . . . 1 . . . Uniques/NPCs Destroyed . | . . . . . . . . . . . . . . . . . . . . . . . . . . . . Combat | -11 -10 -10 -10 -9 -8 -8 -8 -7 -7 -7 -7 -6 -6 -5 -5 -5 -5 -4 -4 -4 -4 -4 -3 -2 -1 -1 -1 -------- Run | Scr Mat Min Exi Min Mat Gar Mat Fac Gar Fac Gar Fac Gar Fac Gar Fac Gar Fac Gar Fac Upp Upp Res Res Acc Gar Acc Damage Taken 28052 | . 446 135 . 229 658 457 432 . 696 907 1722 . 1356 304 567 494 806 2129 586 1907 486 46 2355 5747 . 3979 1608 Core 4281 | . 113 30 . 37 57 101 80 . 79 215 138 . 176 35 65 72 67 354 109 213 . 21 373 337 . 1208 401 Absorbed by Shields 249 | . . . . . . . . . . . . . . . 28 . 45 . . . . . . . . 176 . Core Remaining (%) 62 | 100 . . . 28 . . 56 . . . 38 . 79 . . . 76 . . . . 39 71 76 . . . Volleys Fired 986 | 3 37 14 . 19 71 26 25 . 14 45 80 . 39 21 22 33 56 58 57 94 10 3 85 122 . 43 9 Largest 3 | 2 2 2 . 2 2 2 1 . 2 2 2 . 2 2 1 1 2 2 1 1 2 1 2 3 . 3 1 Hottest 353 | 60 60 40 . 89 150 150 65 . 50 130 130 . 93 56 63 40 66 81 81 110 186 81 157 353 . 353 94 Shots Fired 1416 | 6 73 28 . 38 127 40 25 . 26 49 111 . 50 28 22 33 60 67 60 100 16 5 127 252 . 64 9 Gun 489 | 6 73 28 . 19 49 20 20 . 26 . 55 . 21 14 9 . 9 10 . . 1 . 34 87 . 5 3 Cannon 682 | . . . . 19 78 14 5 . . 44 43 . 9 . 1 18 35 32 51 69 11 5 70 141 . 36 1 Launcher 54 | . . . . . . 6 . . . 1 6 . 3 . . . 12 . . . . . . 15 . 6 5 Special 191 | . . . . . . . . . . 4 7 . 17 14 12 15 4 25 9 31 4 . 23 9 . 17 . Kinetic 453 | 3 46 28 . 19 22 20 20 . 26 . 54 . 21 14 9 . 16 10 . . 1 . 56 85 . 2 1 Thermal 562 | . 7 . . 19 105 14 5 . . 44 44 . 6 . . 18 28 27 . 69 5 . 14 120 . 34 3 Explosive 31 | . . . . . . . . . . 1 6 . 3 . . . 12 . . . . . . . . 4 5 Electromagnetic 179 | 3 20 . . . . 6 . . . . . . 3 . 1 . . 5 51 . 6 5 34 38 . 7 . Robot Hit Streak 32 | 2 7 4 . 9 12 11 6 . 7 13 10 . 15 5 7 10 9 14 24 10 8 5 9 32 . 10 7 Robot Miss Streak 8 | 2 4 7 . 3 4 2 2 . 3 3 6 . 8 4 1 2 4 3 2 3 2 . 5 4 . 4 . Penetration Max 1 | . . . . . . . . . . . . . . . . . . . . . . . 1 1 . . . Secondary Targets 6 | . . 2 . . . . . . . . 1 . . 1 . . 1 . . . . . 1 . . . . Max Gunslinging Chain 1 | . . 1 . . . . . . . . 1 . . 1 . . 1 . . . . . 1 . . . . Shots Hit Robots 958 | 3 40 14 . 25 86 28 17 . 18 30 86 . 34 21 23 22 40 46 46 63 12 3 77 179 . 42 3 Core Hits 442 | 2 15 6 . 9 30 12 9 . 3 12 66 . 28 8 3 1 31 11 19 17 2 2 23 116 . 16 1 Critical Hits 33 | . . 1 . . 1 . . . . . 1 . . . . . 4 1 . 1 1 1 5 16 . 1 . Critical Kills 12 | . . 1 . . 1 . . . . . . . . . . . 1 . . . 1 . 2 6 . . . Critical Parts Destroyed 21 | . . . . . . . . . . . 1 . . . . . 3 1 . 1 . 1 3 10 . 1 . Melee Attacks 53 | . . . . . 3 . . . 4 5 2 . 1 . 10 . . 3 . . . . 8 17 . . . Impact 3 | . . . . . 3 . . . . . . . . . . . . . . . . . . . . . . Slashing 8 | . . . . . . . . . . . 1 . . . 2 . . 3 . . . . 2 . . . . Piercing 23 | . . . . . . . . . . . . . . . . . . . . . . . 6 17 . . . Sneak Attacks 7 | . . . . . . . . . . 3 . . . . 2 . . . . . . . . 2 . . . Combat Hostiles 2 | . . . . . . . . . . . . . . . 2 . . . . . . . . . . . . Follow-up Attacks . | . . . . . . . . . . . . . . . . . . . . . . . . . . . . Damage Inflicted 28088 | 45 459 112 . 416 1708 808 325 . 248 834 2381 . 882 251 135 344 2400 1117 1337 2096 288 95 2175 7654 . 1873 105 Guns 6565 | 45 439 112 . 150 573 247 295 . 248 . 882 . 347 251 112 . 182 187 . . 10 . 598 1676 . 116 95 Cannons 14626 | . . . . 266 1105 229 30 . . 739 835 . 111 . 23 344 732 776 1042 1836 278 95 1577 3698 . 910 . Explosions 6006 | . 20 . . . . 332 . . . 95 664 . 424 . . . 1486 . 295 260 . . . 1573 . 847 10 Melee 706 | . . . . . . . . . . . . . . . . . . . . . . . . 706 . . . Ramming 185 | . . . . . 30 . . . . . . . . . . . . 154 . . . . . 1 . . . Kinetic 6761 | 33 260 112 . 266 348 247 295 . 248 . 882 . 347 251 112 . 355 187 . . 10 . 1047 1729 . 32 . Thermal 12023 | . 66 . . 150 1330 229 30 . . 739 835 . 111 . . 344 559 643 295 1978 147 . 339 3255 . 878 95 Explosive 3486 | . . . . . . . . . . 95 664 . 424 . . . 1486 . . 118 . . . . . 689 10 Electromagnetic 4927 | 12 133 . . . . 332 . . . . . . . . 23 . . 133 1042 . 131 95 789 1963 . 274 . Impact . | . . . . . . . . . . . . . . . . . . . . . . . . . . . . Slashing . | . . . . . . . . . . . . . . . . . . . . . . . . . . . . Piercing 706 | . . . . . . . . . . . . . . . . . . . . . . . . 706 . . . Highest Corruption 34 | . . . . . . . . . . 1 . . . 3 2 1 1 25 24 34 32 32 24 24 . 5 12 Average Corruption 16 | . . . . . . . . . . 1 . . . 2 1 1 1 18 21 28 31 32 21 15 . 4 5 Corruption Purged 20 | . . . . . . . . . . 1 . . . 1 2 . 1 1 3 7 1 . . 3 . . . Effects 558 | . . . . . . . . . . . . . . 4 2 1 . 63 81 119 37 9 103 117 . 10 12 Message Errors 98 | . . . . . . . . . . . . . . 1 2 1 . 8 18 20 2 2 21 16 . 5 2 Matter Fused 74 | . . . . . . . . . . . . . . . . . . 10 16 9 4 . 10 19 . 1 5 Heat Flow Errors 50 | . . . . . . . . . . . . . . 1 . . . 10 9 6 4 . 7 12 . . 1 Energy Discharges 29 | . . . . . . . . . . . . . . . . . . 4 6 7 . . 7 4 . . 1 Parts Rejected 7 | . . . . . . . . . . . . . . . . . . 1 . 3 . . 1 1 . 1 . Data Loss (minor) 41 | . . . . . . . . . . . . . . 2 . . . 5 4 8 4 1 7 9 . . 1 Data Loss (major) 12 | . . . . . . . . . . . . . . . . . . 1 2 1 3 1 1 3 . . . Misfires 19 | . . . . . . . . . . . . . . . . . . 1 3 6 1 2 2 3 . 1 . Alerts 12 | . . . . . . . . . . . . . . . . . . 1 1 3 1 . 4 2 . . . Misdirections 95 | . . . . . . . . . . . . . . . . . . 12 11 23 15 2 19 11 . . 2 Targeting Errors 109 | . . . . . . . . . . . . . . . . . . 9 11 33 2 1 21 30 . 2 . Weapon Failures 12 | . . . . . . . . . . . . . . . . . . 1 . . 1 . 3 7 . . . Overload Shots . | . . . . . . . . . . . . . . . . . . . . . . . . . . . . Overflow Damage 822 | . . . . . 40 . . . . 23 47 . . . . 41 52 70 24 225 31 . 72 120 . 77 . Projectiles 694 | . . . . . 35 . . . . 23 47 . . . . 41 21 44 . 225 31 . 72 118 . 37 . Explosions 97 | . . . . . . . . . . . . . . . . . 31 . 24 . . . . 2 . 40 . Melee 31 | . . . . . 5 . . . . . . . . . . . . 26 . . . . . . . . . Knockbacks 15 | . . . . 3 . . . . . . . . . . . . 3 2 . . . . 7 . . . . Impact 1 | . . . . . . . . . . . . . . . . . . 1 . . . . . . . . . Kinetic 11 | . . . . 3 . . . . . . . . . . . . 3 . . . . . 5 . . . . Secondary 3 | . . . . . . . . . . . . . . . . . . 1 . . . . 2 . . . . Self-Inflicted Damage 889 | . . . . . 15 4 . . . . 88 . . . . . 46 75 64 188 . . . 229 . 110 70 Shots 32 | . . . . . . 1 . . . . 2 . . . . . 2 . 1 2 . . . 19 . 3 2 Rammed 12 | . . . . . 1 . . . . . . . . . . . . 9 . . . . . 2 . . . Targets Rammed 12 | . . . . . 1 . . . . . . . . . . . . 9 . . . . . 2 . . . Kicked . | . . . . . . . . . . . . . . . . . . . . . . . . . . . . Crushed . | . . . . . . . . . . . . . . . . . . . . . . . . . . . . Highest Temperature 416 | . 60 . . 305 315 201 22 . 44 393 382 . 27 164 27 48 66 217 306 416 204 . 199 378 . 331 178 Average Temperature 88 | . 23 . . 142 93 54 9 . 20 92 144 . 8 30 13 16 20 57 73 91 60 . 95 100 . 114 104 Received Heat Transfer 3285 | . 159 . . 108 225 189 162 . 81 228 831 . 246 27 111 27 333 39 126 36 9 9 69 171 . 63 36 Effects 10 | . . . . 1 . . . . . 2 4 . . . . . . . . 1 . . . 2 . . . Shutdowns 2 | . . . . . . . . . . . . . . . . . . . . 1 . . . 1 . . . Energy Bleed 2 | . . . . . . . . . . 1 1 . . . . . . . . . . . . . . . . Interference 5 | . . . . 1 . . . . . 1 3 . . . . . . . . . . . . . . . . Short Circuit 1 | . . . . . . . . . . . . . . . . . . . . . . . . 1 . . . Siege Activations . | . . . . . . . . . . . . . . . . . . . . . . . . . . . . Robots Corrupted 15 | . . . . . . . . . . . . . . . . . . . 2 . 1 . 3 8 . 1 . Combat Hostiles 8 | . . . . . . . . . . . . . . . . . . . . . 1 . 1 5 . 1 . Parts Fried 44 | . . . . . . 1 . . . . . . . . . . . 1 8 . 2 2 8 21 . 1 . Impact Corruptions 2 | . . . . . 1 . . . . . . . . . . . . 1 . . . . . . . . . Robots Melted 3 | . . . . . 1 . . . . . 1 . . . . . . 1 . . . . . . . . . Combat Hostiles 3 | . . . . . 1 . . . . . 1 . . . . . . 1 . . . . . . . . . Parts Melted 36 | . . . . 1 2 . . . . 2 4 . . . . . . 4 . 6 . . 6 8 . 3 . Heat Transferred 13013 | . 150 . . 444 2516 333 37 . . 962 1071 . 148 . . 450 850 800 250 1257 148 . 296 2619 . 571 111 Parts Sabotaged . | . . . . . . . . . . . . . . . . . . . . . . . . . . . . Parts Stolen . | . . . . . . . . . . . . . . . . . . . . . . . . . . . . Parts Stripped . | . . . . . . . . . . . . . . . . . . . . . . . . . . . . Power Chain Reactions 7 | . 1 . . . . 1 . . . . . . . . . . . . 1 . . . . 3 . 1 . Missiles Intercepted . | . . . . . . . . . . . . . . . . . . . . . . . . . . . . Alert | -11 -10 -10 -10 -9 -8 -8 -8 -7 -7 -7 -7 -6 -6 -5 -5 -5 -5 -4 -4 -4 -4 -4 -3 -2 -1 -1 -1 ------- Run | Scr Mat Min Exi Min Mat Gar Mat Fac Gar Fac Gar Fac Gar Fac Gar Fac Gar Fac Gar Fac Upp Upp Res Res Acc Gar Acc Peak Influence 606 | 5 142 94 . 60 251 480 606 256 521 391 504 284 387 271 268 140 339 204 162 179 . . 123 319 171 205 131 Initial 273 | . 3 7 . . 19 36 234 256 179 273 126 264 198 203 28 112 12 177 . 84 . . 9 57 171 136 36 Average 145 | 1 61 22 . 31 104 327 315 256 410 252 307 270 288 206 166 64 120 76 72 63 . . 47 138 171 125 51 Maximum Alert Level 2 | . . . . . 1 2 2 1 2 1 2 1 1 1 1 . 1 1 . . . . . 1 . 1 . Low Security (%) 71 | 100 100 100 . 100 94 11 . . 8 33 37 . 13 12 44 100 80 98 100 100 . . 100 76 100 99 100 Level 1 23 | . . . . . 5 66 72 100 22 66 24 100 86 87 55 . 19 1 . . . . . 23 . . . Level 2 4 | . . . . . . 21 27 . 68 . 38 . . . . . . . . . . . . . . . . Level 3 . | . . . . . . . . . . . . . . . . . . . . . . . . . . . . Level 4 . | . . . . . . . . . . . . . . . . . . . . . . . . . . . . Level 5 . | . . . . . . . . . . . . . . . . . . . . . . . . . . . . High Security . | . . . . . . . . . . . . . . . . . . . . . . . . . . . . Max Security . | . . . . . . . . . . . . . . . . . . . . . . . . . . . . Squads Dispatched 43 | . . . . . 1 . 1 . . 4 . . . 1 . 2 . 9 . 6 . . 6 12 . . 1 Investigation 5 | . . . . . . . 1 . . 2 . . . . . . . 1 . 1 . . . . . . . Extermination 21 | . . . . . . . . . . 1 . . . 1 . 1 . 4 . 4 . . 3 6 . . 1 Reinforcement 10 | . . . . . 1 . . . . 1 . . . . . 1 . 1 . . . . 3 3 . . . Assault . | . . . . . . . . . . . . . . . . . . . . . . . . . . . . Garrison 7 | . . . . . . . . . . . . . . . . . . 3 . 1 . . . 3 . . . Intercept . | . . . . . . . . . . . . . . . . . . . . . . . . . . . . Construction Impeded 5 | . . . . . . . . . . 1 . . . . . . . . . . . . 2 2 . . . Haulers Reinforced 1 | . . . . . . . . . . . . . . . . . . . . . . . 1 . . . . Stealth | -11 -10 -10 -10 -9 -8 -8 -8 -7 -7 -7 -7 -6 -6 -5 -5 -5 -5 -4 -4 -4 -4 -4 -3 -2 -1 -1 -1 --------- Run | Scr Mat Min Exi Min Mat Gar Mat Fac Gar Fac Gar Fac Gar Fac Gar Fac Gar Fac Gar Fac Upp Upp Res Res Acc Gar Acc Distress Signals 18 | . 2 . . . 4 . 2 . . . . . . . . 1 . . . . . . 2 7 . . . Communications Jammed 116 | . . . . . . . . . . . . . . . . . . 21 . 80 . . 15 . . . . Distress Signals 116 | . . . . . . . . . . . . . . . . . . 21 . 80 . . 15 . . . . Times Spotted 479 | . 14 5 . 5 33 14 12 . 12 12 30 . 24 12 30 14 24 26 18 35 5 1 37 71 . 30 15 Peak Tracking Total 12 | . 5 3 . 3 4 3 8 . 8 3 6 . 8 4 5 4 4 4 5 6 3 1 6 8 . 12 9 Tactical Retreats 31 | . . . . . 2 . 1 . 2 . 4 . . . 1 2 4 2 1 2 . . 2 3 . 4 1 Traps | -11 -10 -10 -10 -9 -8 -8 -8 -7 -7 -7 -7 -6 -6 -5 -5 -5 -5 -4 -4 -4 -4 -4 -3 -2 -1 -1 -1 ------- Run | Scr Mat Min Exi Min Mat Gar Mat Fac Gar Fac Gar Fac Gar Fac Gar Fac Gar Fac Gar Fac Upp Upp Res Res Acc Gar Acc Traps Triggered 51 | . 2 . . . . 3 . . 2 2 5 . 6 1 3 . 8 8 2 1 . . 1 6 . 1 . Indirectly 4 | . . . . . . . . . . . . . . . . . . . . . . . . 4 . . . Trap Hack Attempts 13 | . . . . . . . . . . . . . 11 . 2 . . . . . . . . . . . . Triggered . | . . . . . . . . . . . . . . . . . . . . . . . . . . . . Disarmed . | . . . . . . . . . . . . . . . . . . . . . . . . . . . . Reprogrammed 3 | . . . . . . . . . . . . . 2 . 1 . . . . . . . . . . . . Reused . | . . . . . . . . . . . . . . . . . . . . . . . . . . . . Traps Extracted . | . . . . . . . . . . . . . . . . . . . . . . . . . . . . Installed . | . . . . . . . . . . . . . . . . . . . . . . . . . . . . Triggered . | . . . . . . . . . . . . . . . . . . . . . . . . . . . . Machines | -11 -10 -10 -10 -9 -8 -8 -8 -7 -7 -7 -7 -6 -6 -5 -5 -5 -5 -4 -4 -4 -4 -4 -3 -2 -1 -1 -1 ---------- Run | Scr Mat Min Exi Min Mat Gar Mat Fac Gar Fac Gar Fac Gar Fac Gar Fac Gar Fac Gar Fac Upp Upp Res Res Acc Gar Acc Machines Disabled 47 | . . . . . 3 2 3 . 1 7 3 . 4 . 2 1 3 2 5 4 . . 1 3 . 2 1 Max in Single Turn 2 | . . . . . 1 1 1 . 1 1 1 . 1 . 1 . 1 1 1 2 . . 1 1 . 1 1 Garrison Access 2 | . . . . . . . 1 . . 1 . . . . . . . . . . . . . . . . . Garrison Relay 21 | . . . . . . 2 . . 1 . 3 . 4 . 2 . 3 . 4 . . . . . . 2 . Machines Sabotaged . | . . . . . . . . . . . . . . . . . . . . . . . . . . . . Garrisons Compromised . | . . . . . . . . . . . . . . . . . . . . . . . . . . . . Overloaded Fab Kills . | . . . . . . . . . . . . . . . . . . . . . . . . . . . . Fab Network Shutdowns . | . . . . . . . . . . . . . . . . . . . . . . . . . . . . Hacking | -11 -10 -10 -10 -9 -8 -8 -8 -7 -7 -7 -7 -6 -6 -5 -5 -5 -5 -4 -4 -4 -4 -4 -3 -2 -1 -1 -1 --------- Run | Scr Mat Min Exi Min Mat Gar Mat Fac Gar Fac Gar Fac Gar Fac Gar Fac Gar Fac Gar Fac Upp Upp Res Res Acc Gar Acc Machines Accessed 64 | . 7 1 2 1 10 . 5 1 . 6 . 2 . 3 . 2 . 9 . 5 . . 5 4 1 . . Terminals 34 | . 6 1 . . 8 . 1 . . 4 . 1 . 1 . 1 . 6 . 2 . . 1 2 . . . Fabricators 6 | . . . . . . . . . . . . . . 1 . . . 1 . 3 . . 1 . . . . Repair Stations 2 | . . . . . . . . . . . . . . . . . . 1 . . . . . 1 . . . Recycling Units 6 | . 1 . . . 1 . 2 . . . . . . . . . . . . . . . 2 . . . . Scanalyzers 1 | . . . . . . . 1 . . . . . . . . . . . . . . . . . . . . Garrison Access 12 | . . . . . 1 . 1 1 . 2 . 1 . 1 . 1 . 1 . . . . 1 1 1 . . Total Hacks 195 | . 23 3 2 1 46 . 14 2 . 14 . 5 . 5 . 2 . 27 . 22 . . 14 13 2 . . Successful 98 | . 14 2 2 1 23 . 11 2 . 7 . 4 . 2 . 1 . 8 . 8 . . 7 4 2 . . Failed 97 | . 9 1 . . 23 . 3 . . 7 . 1 . 3 . 1 . 19 . 14 . . 7 9 . . . Catastrophic 30 | . 1 . . . 1 . . . . 2 . 1 . 1 . . . 9 . 7 . . 4 4 . . . Database Lockouts . | . . . . . . . . . . . . . . . . . . . . . . . . . . . . Manual 92 | . 14 3 1 . 29 . 4 . . 5 . 1 . 1 . . . 12 . 8 . . 6 8 . . . Terminals 129 | . 21 3 . . 39 . 2 . . 11 . 3 . 2 . 1 . 21 . 13 . . 6 7 . . . Fabricators 13 | . . . . . . . . . . . . . . 1 . . . 2 . 9 . . 1 . . . . Repair Stations 6 | . . . . . . . . . . . . . . . . . . 3 . . . . . 3 . . . Recycling Units 18 | . 2 . . . 6 . 5 . . . . . . . . . . . . . . . 5 . . . . Scanalyzers 4 | . . . . . . . 4 . . . . . . . . . . . . . . . . . . . . Garrison Access 22 | . . . . . 1 . 3 2 . 3 . 2 . 2 . 1 . 1 . . . . 2 3 2 . . Terminal Hacks 37 | . 10 2 2 1 12 . 1 . . 2 . 2 . . . . . 2 . 1 . . 2 . . . . Record 1 | . . . 1 . . . . . . . . . . . . . . . . . . . . . . . . Part Schematic 2 | . 2 . . . . . . . . . . . . . . . . . . . . . . . . . . Robot Analysis 3 | . 2 1 . . . . . . . . . . . . . . . . . . . . . . . . . Prototype ID Bank 1 | . . . . . 1 . . . . . . . . . . . . . . . . . . . . . . Open Door 1 | . . . . 1 . . . . . . . . . . . . . . . . . . . . . . . Level Access Points 1 | . . . . . . . . . . . . 1 . . . . . . . . . . . . . . . Terminal Index 1 | . . . . . . . . . . . . . . . . . . . . . . . 1 . . . . Fabricator Index 1 | . . . . . . . . . . . . . . . . . . . . 1 . . . . . . . Alert Level 2 | . 1 . . . 1 . . . . . . . . . . . . . . . . . . . . . . Locate Traps 6 | . 2 . . . 2 . . . . 1 . . . . . . . 1 . . . . . . . . . Transport Status 3 | . . . . . 2 . . . . . . . . . . . . 1 . . . . . . . . . Hauler Manifests 2 | . 1 . . . 1 . . . . . . . . . . . . . . . . . . . . . . Zone Layout 12 | . 2 1 . . 5 . 1 . . 1 . 1 . . . . . . . . . . 1 . . . . EX-Prototype ID Bank 1 | . . . 1 . . . . . . . . . . . . . . . . . . . . . . . . Fabricator Hacks 3 | . . . . . . . . . . . . . . . . . . . . 3 . . . . . . . Load Schematic 2 | . . . . . . . . . . . . . . . . . . . . 2 . . . . . . . Build 1 | . . . . . . . . . . . . . . . . . . . . 1 . . . . . . . Repair Station Hacks 5 | . . . . . . . . . . . . . . . . . . 2 . . . . . 3 . . . Scan Component 3 | . . . . . . . . . . . . . . . . . . 1 . . . . . 2 . . . Repair 2 | . . . . . . . . . . . . . . . . . . 1 . . . . . 1 . . . Recycling Unit Hacks 4 | . . . . . 1 . 2 . . . . . . . . . . . . . . . 1 . . . . Report Inventory 3 | . . . . . 1 . 1 . . . . . . . . . . . . . . . 1 . . . . Retrieve Components 1 | . . . . . . . 1 . . . . . . . . . . . . . . . . . . . . Scanalyzer 4 | . . . . . . . 4 . . . . . . . . . . . . . . . . . . . . Insert Component 2 | . . . . . . . 2 . . . . . . . . . . . . . . . . . . . . Analyze 2 | . . . . . . . 2 . . . . . . . . . . . . . . . . . . . . Garrison Access Hacks 18 | . . . . . 1 . 2 2 . 3 . 2 . 2 . 1 . 1 . . . . 1 1 2 . . Unlock Access 10 | . . . . . 1 . 1 1 . 2 . 1 . 1 . 1 . 1 . . . . . . 1 . . Seal Access 1 | . . . . . . . . . . 1 . . . . . . . . . . . . . . . . . Coupler Status 7 | . . . . . . . 1 1 . . . 1 . 1 . . . . . . . . 1 1 1 . . Unauthorized Hacks 27 | . 4 . . . 9 . 2 . . 2 . . . . . . . 3 . 4 . . 3 . . . . Terminals 23 | . 4 . . . 8 . . . . 2 . . . . . . . 3 . 4 . . 2 . . . . Track 6 | . . . . . 2 . . . . 1 . . . . . . . 1 . 1 . . 1 . . . . Assimilate 1 | . . . . . . . . . . . . . . . . . . 1 . . . . . . . . . Botnet 15 | . 4 . . . 6 . . . . 1 . . . . . . . 1 . 2 . . 1 . . . . Disrupt 1 | . . . . . . . . . . . . . . . . . . . . 1 . . . . . . . Fabricators . | . . . . . . . . . . . . . . . . . . . . . . . . . . . . Repair Stations . | . . . . . . . . . . . . . . . . . . . . . . . . . . . . Recycling Units 3 | . . . . . 1 . 1 . . . . . . . . . . . . . . . 1 . . . . Recyclers 3 | . . . . . 1 . 1 . . . . . . . . . . . . . . . 1 . . . . Scanalyzers . | . . . . . . . . . . . . . . . . . . . . . . . . . . . . Garrison Access 1 | . . . . . . . 1 . . . . . . . . . . . . . . . . . . . . Jam 1 | . . . . . . . 1 . . . . . . . . . . . . . . . . . . . . Data Cores Recovered . | . . . . . . . . . . . . . . . . . . . . . . . . . . . . Used . | . . . . . . . . . . . . . . . . . . . . . . . . . . . . Hacking Detections 55 | . 7 1 . . 8 . 2 1 . 6 . 2 . 3 . 2 . 9 . 5 . . 5 3 1 . . Full Trace Events 2 | . . . . . . . . . . . . . . . . . . 1 . 1 . . . . . . . Feedback Events . | . . . . . . . . . . . . . . . . . . . . . . . . . . . . Feedback Blocked . | . . . . . . . . . . . . . . . . . . . . . . . . . . . . Robot Schematics Acquired . | . . . . . . . . . . . . . . . . . . . . . . . . . . . . Robots Built . | . . . . . . . . . . . . . . . . . . . . . . . . . . . . Matter . | . . . . . . . . . . . . . . . . . . . . . . . . . . . . Time . | . . . . . . . . . . . . . . . . . . . . . . . . . . . . Total Robot Build Rating . | . . . . . . . . . . . . . . . . . . . . . . . . . . . . Part Schematics Acquired 4 | . 2 . . . . . 2 . . . . . . . . . . . . . . . . . . . . Parts Built 2 | . . . . . . . . . . . . . . . . . . . . 2 . . . . . . . Matter 168 | . . . . . . . . . . . . . . . . . . . . 168 . . . . . . . Time 42 | . . . . . . . . . . . . . . . . . . . . 42 . . . . . . . Total Part Build Rating 8 | . . . . . . . . . . . . . . . . . . . . 8 . . . . . . . Parts Repaired 2 | . . . . . . . . . . . . . . . . . . 1 . . . . . 1 . . . Time 70 | . . . . . . . . . . . . . . . . . . 26 . . . . . 44 . . . Parts Recycled . | . . . . . . . . . . . . . . . . . . . . . . . . . . . . Recycled Matter . | . . . . . . . . . . . . . . . . . . . . . . . . . . . . Retrieved Matter . | . . . . . . . . . . . . . . . . . . . . . . . . . . . . Retrieved Components 2 | . . . . . . . 2 . . . . . . . . . . . . . . . . . . . . Parts Scanalyzed 2 | . . . . . . . 2 . . . . . . . . . . . . . . . . . . . . Part Schematics Acquired 2 | . . . . . . . 2 . . . . . . . . . . . . . . . . . . . . Parts Damaged . | . . . . . . . . . . . . . . . . . . . . . . . . . . . . Bothacking | -11 -10 -10 -10 -9 -8 -8 -8 -7 -7 -7 -7 -6 -6 -5 -5 -5 -5 -4 -4 -4 -4 -4 -3 -2 -1 -1 -1 ------------ Run | Scr Mat Min Exi Min Mat Gar Mat Fac Gar Fac Gar Fac Gar Fac Gar Fac Gar Fac Gar Fac Upp Upp Res Res Acc Gar Acc Used RIF Installer 8 | . . . . . . 1 . . 1 . 1 . 1 . 1 . 1 . 1 . . . . . . 1 . Command Fork 1 | . . . . . . . . . . . . . . . . . . . . . . . . . . 1 . Threat Obfuscator 2 | . . . . . . . . . 1 . 1 . . . . . . . . . . . . . . . . Signal Jammer 1 | . . . . . . . . . . . . . . . . . 1 . . . . . . . . . . Structural Interface 1 | . . . . . . . . . . . . . . . . . . . 1 . . . . . . . . Autoassimilate 2 | . . . . . . . . . . . . . 1 . 1 . . . . . . . . . . . . Robots Hacked 180 | . . . . . . . . . 2 6 7 . 14 8 20 14 8 19 13 23 4 . 15 8 . 19 . Non-combat 42 | . . . . . . . . . . 4 . . . 3 . 6 . 11 . 12 . . 5 1 . . . Combat 138 | . . . . . . . . . 2 2 7 . 14 5 20 8 8 8 13 11 4 . 10 7 . 19 . Autoassimilated 41 | . . . . . . . . . . . . . 3 . 5 5 4 2 5 3 1 . 2 3 . 8 . Robot Hacks Applied 158 | . . . . . . . . . 2 7 7 . 11 9 16 13 4 21 8 24 3 . 15 7 . 11 . parse_system 10 | . . . . . . . . . . . . . . . 1 1 . 3 . 4 . . 1 . . . . no_distress 6 | . . . . . . . . . . 1 . . . . . 2 . 1 . . . . 1 1 . . . generate_echo 1 | . . . . . . . . . . . . . . . . . . . . . . . 1 . . . . start_evac 2 | . . . . . . . . . . . . . . . . . . . . 1 . . 1 . . . . find_chute 1 | . . . . . . . . . . . . . . 1 . . . . . . . . . . . . . hold_bot 2 | . . . . . . . . . . . . . . . . 2 . . . . . . . . . . . ignore_repairs 2 | . . . . . . . . . . 2 . . . . . . . . . . . . . . . . . map_walls 4 | . . . . . . . . . . . . . . 1 . 1 . 1 . 1 . . . . . . . map_earth 2 | . . . . . . . . . . . . . . . . . . 1 . 1 . . . . . . . find_fabricator 4 | . . . . . . . . . . . . . . . . 1 . 2 . . . . 1 . . . . drop_inventory 5 | . . . . . . . . . . . . . . . . 1 . 1 . 3 . . . . . . . locate_stockpiles 1 | . . . . . . . . . . . . . . . . . . . . 1 . . . . . . . find_recycling 5 | . . . . . . . . . . 1 . . . . . 1 . 1 . 1 . . 1 . . . . locate_traps 1 | . . . . . . . . . . . . . . . . . . 1 . . . . . . . . . summon_haulers 1 | . . . . . . . . . . . . . . . . . . 1 . . . . . . . . . map_route 9 | . . . . . . . . . . . . . . 1 . 1 . 3 . 3 . . 1 . . . . mark_security 1 | . . . . . . . . . . . . . . 1 . . . . . . . . . . . . . find_garrison 3 | . . . . . . . . . . . . . . 1 . . . . . 1 . . . 1 . . . show_paths 1 | . . . . . . . . . . . . . . . . . . . . . . . . 1 . . . link_fov 1 | . . . . . . . . . . . . . . . . 1 . . . . . . . . . . . scatter_targeting 2 | . . . . . . . . . . . . . 1 . . . . . . 1 . . . . . . . disrupt_area 1 | . . . . . . . . . . . . . . 1 . . . . . . . . . . . . . spike_heat 3 | . . . . . . . . . . . . . . 1 1 . 1 . . . . . . . . . . overload_power 1 | . . . . . . . . . . . . . 1 . . . . . . . . . . . . . . disable_weapons 11 | . . . . . . . . . . . 2 . 1 . 2 . . 2 1 2 . . . 1 . . . reboot_system 2 | . . . . . . . . . 1 . . . . . . . . 1 . . . . . . . . . go_dormant 1 | . . . . . . . . . . 1 . . . . . . . . . . . . . . . . . overwrite_iff 22 | . . . . . . . . . . . . . 2 1 3 . . . 1 . 1 . 4 3 . 7 . formatsys_high 53 | . . . . . . . . . 1 2 5 . 6 1 9 2 3 3 6 5 2 . 4 . . 4 . Relay Couplers Released 89 | . . . . . . 7 . . 4 . 14 . 13 . 9 . 12 . 13 4 . . . 3 . 10 . Machine Destruction 82 | . . . . . . 7 . . 4 . 14 . 13 . 9 . 12 . 13 . . . . . . 10 . Programmers 7 | . . . . . . . . . . . . . . . . . . . . 4 . . . 3 . . . Attached 64 | . . . . . . . . 1 1 3 5 . 6 1 9 1 5 5 8 6 . . 4 4 . 5 . Robots Rewired 11 | . . . . . . . . . . . . . . . 4 . . . 6 . . . . 1 . . . Allies Hacked 3 | . . . . . . . . . . . . . . 1 . . . . . 1 . . 1 . . . . Hacks Repelled . | . . . . . . . . . . . . . . . . . . . . . . . . . . . . Allies | -11 -10 -10 -10 -9 -8 -8 -8 -7 -7 -7 -7 -6 -6 -5 -5 -5 -5 -4 -4 -4 -4 -4 -3 -2 -1 -1 -1 -------- Run | Scr Mat Min Exi Min Mat Gar Mat Fac Gar Fac Gar Fac Gar Fac Gar Fac Gar Fac Gar Fac Upp Upp Res Res Acc Gar Acc Total Allies 126 | . . . . . . . . . 1 2 5 . 11 2 21 7 7 5 18 8 4 . 9 7 . 19 . Largest Group 11 | . . . . . . . . . 1 2 3 3 6 6 11 9 3 3 9 9 2 2 3 3 . 4 . Highest-Rated Group 407 | . . . . . . . . . 32 64 64 64 180 180 407 378 58 168 339 339 112 112 159 90 . 173 . Highest-Rated Ally 115 | . . . . . . . . . 32 32 38 32 32 32 49 49 29 56 115 49 56 56 58 69 . 64 . Total Orders 4 | . . . . . 2 . . . . . . . . . . . . . . . . . . 2 . . . EXPLORE 4 | . . . . . 2 . . . . . . . . . . . . . . . . . . 2 . . . Ally Attacks 644 | . . . . . . 19 23 . 26 13 35 . 59 37 124 56 34 14 35 65 5 . 59 15 . 25 . Total Damage 19423 | . . . . . . 858 1194 . 1292 724 832 . 1219 632 3842 1940 524 889 841 1991 167 . 1433 364 . 681 . Kills 120 | . . . . . . 5 8 . 10 7 6 . 10 6 18 19 2 7 4 5 . . 8 3 . 2 . Allies Corrupted 5 | . . . . . . . . . . . . . . . . . . . . 2 . . 2 1 . . . Allies Melted . | . . . . . . . . . . . . . . . . . . . . . . . . . . . . Turrets Deployed 3 | . . . . . . 1 1 . 1 . . . . . . . . . . . . . . . . . . Intel | -11 -10 -10 -10 -9 -8 -8 -8 -7 -7 -7 -7 -6 -6 -5 -5 -5 -5 -4 -4 -4 -4 -4 -3 -2 -1 -1 -1 ------- Run | Scr Mat Min Exi Min Mat Gar Mat Fac Gar Fac Gar Fac Gar Fac Gar Fac Gar Fac Gar Fac Upp Upp Res Res Acc Gar Acc Robot Analysis Total 3 | . 2 1 . . . . . . . . . . . . . . . . . . . . . . . . . Derelict Logs Recovered 2 | . . . . 2 . . . . . . . . . . . . . . . . . . . . . . . Drone Launches 17 | . . . . . 8 . . . . . . . . . . . . . . . . . . 9 . . . Drone Recoveries 5 | . . . . . . . . . . . . . . . . . . . . . . . . 5 . . . Exploration | -11 -10 -10 -10 -9 -8 -8 -8 -7 -7 -7 -7 -6 -6 -5 -5 -5 -5 -4 -4 -4 -4 -4 -3 -2 -1 -1 -1 ------------- Run | Scr Mat Min Exi Min Mat Gar Mat Fac Gar Fac Gar Fac Gar Fac Gar Fac Gar Fac Gar Fac Upp Upp Res Res Acc Gar Acc Turns Passed 23795 | 75 743 447 271 761 1721 657 507 50 514 1315 1336 255 1106 455 1325 1313 1316 1666 1349 1289 440 160 1559 2297 43 457 368 Spaces Moved 13047 | 56 487 333 240 524 704 371 285 33 300 724 533 166 598 258 674 816 371 924 549 742 310 109 957 1160 35 318 470 Core 562 | 2 . . . . . . . . . . . . . . . . . . . . . . . . . 104 456 Treads 16 | . . . . . . . . . . . . . . . . . . . . . . . . . . 2 14 Legs . | . . . . . . . . . . . . . . . . . . . . . . . . . . . . Wheels 12469 | 54 487 333 240 524 704 371 285 33 300 724 533 166 598 258 674 816 371 924 549 742 310 109 957 1160 35 212 . Hover . | . . . . . . . . . . . . . . . . . . . . . . . . . . . . Flight . | . . . . . . . . . . . . . . . . . . . . . . . . . . . . Fastest Speed 50 | 50 100 110 110 110 130 140 150 150 150 150 140 150 140 150 150 150 150 130 135 130 130 130 120 120 116 50 50 Average Speed 136 | 98 122 118 110 110 134 148 150 150 150 150 147 150 149 150 150 150 150 148 153 138 130 130 125 142 116 97 55 Slowest Speed 220 | 100 140 140 110 110 200 150 150 150 150 150 160 150 150 150 150 150 150 160 180 140 130 130 140 160 116 220 150 Overloaded Moves . | . . . . . . . . . . . . . . . . . . . . . . . . . . . . Propulsion Burnouts . | . . . . . . . . . . . . . . . . . . . . . . . . . . . . Robots Hopped 4 | . . . . . . . . . 4 . . . . . . . . . . . . . . . . . . Cave-ins Triggered 2 | . . . . . . . . . . . . . . . . . . 1 . 1 . . . . . . . Exploration Rate (%) 41 | 4 72 76 60 92 76 40 31 3 45 16 59 6 77 7 79 19 61 27 80 20 56 15 26 33 2 57 12 Regions Visited 27 Branch Regions 5 Pre-discovered Areas 2 | . . . 1 1 . . . . . . . . . . . . . . . . . . . . . . . Known Exits Taken 10 | . . . . . 1 . . 1 . 1 . 1 . 1 . 1 . 1 . . . . 1 1 1 . . Unknown Exits Taken 9 | 1 1 1 1 1 . . 1 . . . . . . . . . . . . 1 1 1 . . . . . Scrap Searched 7 | . . 1 . 3 . . . . . . . . . . . . . . . . 2 1 . . . . . Spaces Dug 190 | . . . . . 6 3 1 . . 3 . . . . 1 4 46 6 . 3 . . 9 25 . 49 34 Terrain Destroyed 596 | . 5 . . . 18 3 1 . . 14 37 . 6 . 1 9 146 16 13 57 1 . 25 86 . 112 46 Melee 18 | . . . . . 3 . . . . . . . . . 1 . . 3 . . . . 8 3 . . . Projectile 166 | . . . . . 15 . 1 . . 7 . . . . . 9 7 13 . 22 1 . 17 59 . 13 2 AOE 412 | . 5 . . . . 3 . . . 7 37 . 6 . . . 139 . 13 35 . . . 24 . 99 44 Terrain Rammed . | . . . . . . . . . . . . . . . . . . . . . . . . . . . . Walls Destroyed . | . . . . . . . . . . . . . . . . . . . . . . . . . . . . Machines Disabled . | . . . . . . . . . . . . . . . . . . . . . . . . . . . . Actions | -11 -10 -10 -10 -9 -8 -8 -8 -7 -7 -7 -7 -6 -6 -5 -5 -5 -5 -4 -4 -4 -4 -4 -3 -2 -1 -1 -1 --------- Run | Scr Mat Min Exi Min Mat Gar Mat Fac Gar Fac Gar Fac Gar Fac Gar Fac Gar Fac Gar Fac Upp Upp Res Res Acc Gar Acc Total 17806 | 67 562 362 249 671 1355 445 352 34 345 904 972 172 761 305 965 884 1072 1158 1009 929 334 123 1188 1557 37 427 567 Wait 2298 | . 12 4 . 117 472 10 18 . 2 100 277 5 15 13 84 10 549 85 247 21 1 6 55 109 . 16 70 Move 13004 | 55 486 332 239 523 703 369 284 32 290 723 531 165 596 257 672 815 369 923 547 741 309 108 956 1159 34 316 470 Hop 4 | . . . . . . . . . 4 . . . . . . . . . . . . . . . . . . Pick Up 295 | 3 16 8 5 4 37 9 12 . 4 9 14 1 17 5 12 2 10 22 17 15 2 3 20 34 1 11 2 Fast Attach 111 | 5 4 . . 1 8 . . . . 2 3 . 2 1 1 10 2 14 2 6 1 . 16 25 . 3 5 Attach 178 | 1 4 2 . . 13 1 1 2 4 4 8 1 12 2 6 1 7 15 9 16 4 1 15 24 2 19 4 Detach 22 | . . . . . 3 . . . . . 3 . 1 . 2 . . 1 3 . 1 . . 3 . 2 3 Swap 174 | . 1 1 . 2 11 4 2 . 1 7 21 . 14 3 16 1 8 10 3 16 3 2 14 29 . 5 . Drop 220 | . 2 1 5 5 33 2 10 . 5 9 9 . 5 3 8 12 5 16 9 12 3 . 19 31 . 12 4 Fire 986 | 3 37 14 . 19 71 26 25 . 14 45 80 . 39 21 22 33 56 58 57 94 10 3 85 122 . 43 9 Melee 53 | . . . . . 3 . . . 4 5 2 . 1 . 10 . . 3 . . . . 8 17 . . . Ram 13 | . . . . . 1 . . . . . . . . . . . . 10 . . . . . 2 . . . Kick . | . . . . . . . . . . . . . . . . . . . . . . . . . . . . Crush . | . . . . . . . . . . . . . . . . . . . . . . . . . . . . Escape Stasis 224 | . . . . . . 24 . . 16 . 24 . 48 . 22 . 66 . 16 8 . . . . . . . Rewire 210 | . . . . . . . . . 1 . . . . . 108 . . 1 99 . . . . 1 . . . Trap 13 | . . . . . . . . . . . . . 11 . 2 . . . . . . . . . . . . Miscellaneous 1 | . . . . . . . . . . . . . . . . . . . . . . . . 1 . . . Route ------- -11/Scrapyard -10/Materials (discovered 4 exits: [*Mat x3] / *Min) -10/Mines (discovered 2 exits: [*Mat] / *Exi) -10/Exiles -9/Mines (discovered 2 exits: *Mat x2) -8/Materials (discovered 2 exits: *Fac / Gar) -8/Garrison -8/Materials -7/Factory -7/Garrison -7/Factory -7/Garrison (discovered 2 exits: *Fac x2) -6/Factory (discovered 5 exits: Fac x4 / Gar) -6/Garrison (discovered 3 exits: *Fac x3) -5/Factory -5/Garrison (discovered 3 exits: *Fac x3) -5/Factory -5/Garrison (discovered 2 exits: *Fac x2) -4/Factory (discovered 2 exits: [Upp] / Gar) -4/Garrison (discovered 2 exits: *Fac x2) -4/Factory (discovered 3 exits: Res / [*Upp] / [*Ext]) -4/Upper Caves -4/Upper Caves -3/Research (discovered 2 exits: *Res / *Tes) -2/Research (discovered 2 exits: *Acc x2) -1/Access -1/Garrison -1/Access History --------- Turn | Location | Event 25 | -11/Scrapyard | Discovered new exit (range 16) 76 | -11/Scrapyard | Entered Materials 99 | -10/Materials | Discovered new exit (range 11) 463 | -10/Materials | Discovered new exit (range 7) 482 | -10/Materials | Build established: Hauler-Mutant 557 | -10/Materials | Discovered new exit (range 3) 590 | -10/Materials | Discovered new exit (range 9) 819 | -10/Materials | Entered Mines 868 | -10/Mines | Received a Rocket Launcher from a helpful Derelict 954 | -10/Mines | Joined a pair of Derelicts in attacking an 0b10 outpost 1049 | -10/Mines | Discovered new exit (range 11) 1134 | -10/Mines | Core integrity fell below 50% 1262 | -10/Mines | Deemed a non-threat by the Exiles lab entrance 1262 | -10/Mines | Discovered new exit (range 5) 1266 | -10/Mines | Entered Exiles 1293 | -10/Exiles | Met 8R-AWN 1313 | -10/Exiles | Met EX-HEX 1348 | -10/Exiles | Met EX-BIN 1364 | -10/Exiles | Aligned with FarCom system 1365 | -10/Exiles | Given EX-Vault access code 1393 | -10/Exiles | Opened EX-Vault 1402 | -10/Exiles | Found Deploy-a-Sentry 1405 | -10/Exiles | Found Deploy-a-Sentry 1407 | -10/Exiles | Found Deploy-a-Sentry 1440 | -10/Exiles | Warned to stay clear of 0b10 Research branches 1479 | -10/Exiles | Met EX-DEC 1486 | -10/Exiles | Learned location of Zion (-7) 1528 | -10/Exiles | Discovered new exit (range 10) 1537 | -10/Exiles | Left Exiles lab with Deploy-a-Sentry 1537 | -10/Exiles | Entered Mines 1710 | -9/Mines | Found the Drone Emporium 1715 | -9/Mines | Found Prototype Device 1921 | -9/Mines | Found a damaged Exp. Sensor Array with a note attached 2053 | -9/Mines | Discovered new exit (range 14) 2059 | -9/Mines | Learned Materials non-interactive machine intel 2164 | -9/Mines | Discovered new exit (range 15) 2298 | -9/Mines | Entered Materials 2298 | -8/Materials | Evolved 4 slots: Utility x4 2299 | -8/Materials | Loaded intel: 31 non-interactive machine locations 2332 | -8/Materials | Identified Decoy Drone Bay 3766 | -8/Materials | Discovered new exit (range 68) 4017 | -8/Materials | Identified exit to Garrison 4019 | -8/Materials | Entered Garrison 4036 | -8/Garrison | DAS Turret deployed 4092 | -8/Garrison | Triggered checkpoint 4145 | -8/Garrison | Garrison Relay disabled 4244 | -8/Garrison | Triggered checkpoint 4446 | -8/Garrison | Discovered new exit (range 10) 4470 | -8/Garrison | Installed Relay Interface Framework 4532 | -8/Garrison | Garrison Relay disabled 4556 | -8/Garrison | Triggered checkpoint 4676 | -8/Garrison | Entered Materials 4831 | -8/Materials | Build established: Bothacker-Mutant 4885 | -8/Materials | Discovered new exit (range 3) 5043 | -8/Materials | Identified exit to Garrison 5053 | -8/Materials | DAS Turret deployed 5183 | -8/Materials | Entered Factory 5183 | -7/Factory | Evolved 2 slots: Utility x2 5232 | -7/Factory | Identified exit to Garrison 5233 | -7/Factory | Entered Garrison 5268 | -7/Garrison | Triggered checkpoint 5278 | -7/Garrison | Garrison Relay disabled 5372 | -7/Garrison | Triggered checkpoint 5374 | -7/Garrison | DAS Turret deployed 5378 | -7/Garrison | Triggered checkpoint 5492 | -7/Garrison | Triggered checkpoint 5558 | -7/Garrison | Triggered checkpoint 5630 | -7/Garrison | Discovered new exit (range 12) 5657 | -7/Garrison | Expanded RIF knowledge: Threat Obfuscation 5743 | -7/Garrison | Identified exit to Factory 5747 | -7/Garrison | Entered Factory 5747 | -7/Factory | Accompanied by 1 ally 6629 | -7/Factory | Identified exit to Garrison 6817 | -7/Factory | P-60 Hacker assimilated allied Guardian 4b 7061 | -7/Factory | Identified exit to Garrison 7062 | -7/Factory | Entered Garrison 7062 | -7/Garrison | Accompanied by 1 ally 7071 | -7/Garrison | Expanded RIF knowledge: Threat Obfuscation 7149 | -7/Garrison | Core integrity fell below 50% 7630 | -7/Garrison | Garrison Relay disabled 7786 | -7/Garrison | Triggered checkpoint 7791 | -7/Garrison | Triggered checkpoint 7970 | -7/Garrison | Discovered new exit (range 10) 8012 | -7/Garrison | Triggered checkpoint 8057 | -7/Garrison | Garrison Relay disabled 8187 | -7/Garrison | Triggered checkpoint 8256 | -7/Garrison | Triggered checkpoint 8313 | -7/Garrison | Garrison Relay disabled 8376 | -7/Garrison | Discovered new exit (range 9) 8398 | -7/Garrison | Entered Factory 8398 | -6/Factory | Accompanied by 3 allies 8398 | -6/Factory | Evolved 2 slots: Utility x2 8515 | -6/Factory | Identified exit to Garrison 8572 | -6/Factory | Identified exit to Factory 8653 | -6/Factory | Entered Garrison 8653 | -6/Garrison | Accompanied by 3 allies 8729 | -6/Garrison | Triggered checkpoint 8776 | -6/Garrison | Garrison Relay disabled 8864 | -6/Garrison | Spotted B-75 Beast 8870 | -6/Garrison | Triggered checkpoint 8870 | -6/Garrison | Triggered checkpoint 8882 | -6/Garrison | Allies destroyed B-75 Beast 8884 | -6/Garrison | Triggered checkpoint 8922 | -6/Garrison | Triggered checkpoint 8923 | -6/Garrison | Lost 4 parts (1p2u1w) 8996 | -6/Garrison | Lost 3 parts (1n1u1w) 9058 | -6/Garrison | Discovered exit to Factory (range 14) 9091 | -6/Garrison | Expanded RIF knowledge: Autoassimilate 9162 | -6/Garrison | Triggered checkpoint 9182 | -6/Garrison | Garrison Relay disabled 9302 | -6/Garrison | Discovered exit to Factory (range 9) 9374 | -6/Garrison | Triggered checkpoint 9387 | -6/Garrison | Build established: Botlord-Mutant 9390 | -6/Garrison | Garrison Relay disabled 9626 | -6/Garrison | Triggered checkpoint 9637 | -6/Garrison | Garrison Relay disabled 9679 | -6/Garrison | Discovered exit to Factory (range 10) 9759 | -6/Garrison | Entered Factory 9759 | -5/Factory | Accompanied by 6 allies 9759 | -5/Factory | Evolved 2 slots: Utility x2 10213 | -5/Factory | Identified exit to Garrison 10214 | -5/Factory | Entered Garrison 10258 | -5/Garrison | Triggered checkpoint 10397 | -5/Garrison | Garrison Relay disabled 10674 | -5/Garrison | Triggered checkpoint 10676 | -5/Garrison | Triggered checkpoint 10714 | -5/Garrison | Triggered checkpoint 10728 | -5/Garrison | Triggered checkpoint 10869 | -5/Garrison | Discovered new exit (range 8) 10926 | -5/Garrison | Triggered checkpoint 10963 | -5/Garrison | Garrison Relay disabled 11098 | -5/Garrison | Spotted B-75 Beast 11130 | -5/Garrison | Allies destroyed B-75 Beast 11155 | -5/Garrison | Discovered new exit (range 10) 11242 | -5/Garrison | Triggered checkpoint 11428 | -5/Garrison | Discovered new exit (range 10) 11451 | -5/Garrison | Expanded RIF knowledge: Autoassimilate 11539 | -5/Garrison | Entered Factory 11539 | -5/Factory | Accompanied by 4 allies 12840 | -5/Factory | Identified exit to Garrison 12852 | -5/Factory | Entered Garrison 12860 | -5/Garrison | Expanded RIF knowledge: Signal Jamming 12926 | -5/Garrison | Garrison Relay disabled 13514 | -5/Garrison | Triggered checkpoint 13590 | -5/Garrison | Triggered checkpoint 13713 | -5/Garrison | Discovered new exit (range 15) 13762 | -5/Garrison | Triggered checkpoint 13804 | -5/Garrison | Garrison Relay disabled 13888 | -5/Garrison | Triggered checkpoint 13980 | -5/Garrison | Discovered new exit (range 9) 14048 | -5/Garrison | Triggered checkpoint 14074 | -5/Garrison | Garrison Relay disabled 14168 | -5/Garrison | Entered Factory 14168 | -4/Factory | Evolved 2 slots: Utility x2 14461 | -4/Factory | Found Prototype Hackware 14686 | -4/Factory | Identified Exp. System Shield 14952 | -4/Factory | Lost 4 parts (1p1n1u1w) 14975 | -4/Factory | Crushed by falling debris 15015 | -4/Factory | System corruption reached 10% 15067 | -4/Factory | Lost 6 parts (1p5u) 15381 | -4/Factory | Discovered new exit (range 88) 15594 | -4/Factory | Repaired Hcp. Storage Unit 15733 | -4/Factory | Found Imp. Powered Armor 15833 | -4/Factory | Identified exit to Garrison 15834 | -4/Factory | Entered Garrison 15842 | -4/Garrison | Expanded RIF knowledge: Structural Interface 16187 | -4/Garrison | Triggered checkpoint 16201 | -4/Garrison | Garrison Relay disabled 16279 | -4/Garrison | Spotted B-86 Titan 16284 | -4/Garrison | Triggered checkpoint 16306 | -4/Garrison | Triggered checkpoint 16322 | -4/Garrison | Destroyed B-86 Titan 16366 | -4/Garrison | Triggered checkpoint 16432 | -4/Garrison | Discovered new exit (range 5) 16476 | -4/Garrison | Triggered checkpoint 16504 | -4/Garrison | Garrison Relay disabled 16578 | -4/Garrison | Triggered checkpoint 16727 | -4/Garrison | Garrison Relay disabled 17054 | -4/Garrison | Triggered checkpoint 17054 | -4/Garrison | Discovered new exit (range 7) 17087 | -4/Garrison | Garrison Relay disabled 17183 | -4/Garrison | Entered Factory 17183 | -4/Factory | Accompanied by 9 allies 17547 | -4/Factory | Lost 3 parts (2u1w) 17794 | -4/Factory | Crushed by falling debris 17794 | -4/Factory | System corruption reached 30% 17834 | -4/Factory | Core integrity fell below 50% 17968 | -4/Factory | Discovered new exit (range 12) 18050 | -4/Factory | Discovered new exit (range 148) 18365 | -4/Factory | Discovered new exit (range 19) 18416 | -4/Factory | Fabricated Arm. Huge Wheel (x2) 18444 | -4/Factory | Garrison activated, responded to threat 18472 | -4/Factory | Entered Upper Caves 18895 | -4/Upper Caves | Discovered new exit (range 14) 18912 | -4/Upper Caves | Entered another Upper Caves area 18912 | -4/Upper Caves | Accompanied by 2 allies 18977 | -4/Upper Caves | Discovered new exit (range 16) 18978 | -4/Upper Caves | Attracted the attention of an 0b10 checkpoint 19072 | -4/Upper Caves | Entered Research 19072 | -3/Research | Accompanied by 1 ally 19072 | -3/Research | Evolved 2 slots: Utility x2 19442 | -3/Research | System corruption reached 10% 19502 | -3/Research | Lost 10 parts (2p6u2w) 19987 | -3/Research | Discovered new exit (range 20) 20010 | -3/Research | Identified exit to Testing 20020 | -3/Research | Found Enh. Force Lance 20025 | -3/Research | Found Gamma Bomb Array 20506 | -3/Research | Spotted B-86 Titan 20617 | -3/Research | Discovered new exit (range 10) 20630 | -3/Research | Identified exit to Research 20630 | -3/Research | Spotted B-86 Titan 20631 | -3/Research | Entered another Research area 20631 | -2/Research | Evolved 2 slots: Utility x1, Weapon x1 20686 | -2/Research | Repaired Med. Insulated Plating? 20905 | -2/Research | Spotted B-90 Cyclops 21297 | -2/Research | Lost 10 parts (1n5u4w) 21430 | -2/Research | Lost 6 parts (1p2u3w) 21498 | -2/Research | System corruption reached 10% 21539 | -2/Research | Lost 3 parts (1u2w) 21782 | -2/Research | Found Hvy. Reactive Plating 21928 | -2/Research | Found Fusion Bomb Launcher 21960 | -2/Research | Discovered new exit (range 4) 22012 | -2/Research | Garrison activated, responded to threat 22189 | -2/Research | Found Prototype Launcher 22189 | -2/Research | Identified Enh. Gamma Bomb Array 22198 | -2/Research | Spotted B-90 Cyclops 22360 | -2/Research | Discovered new exit (range 15) 22547 | -2/Research | Lost 3 parts (1n1u1w) 22563 | -2/Research | Found Gamma Bomb Array 22927 | -2/Research | Identified exit to Access 22928 | -2/Research | Entered Access 22928 | -1/Access | Evolved 2 slots: Propulsion x2 22970 | -1/Access | Identified exit to Garrison 22971 | -1/Access | Entered Garrison 22995 | -1/Garrison | Garrison Relay disabled 23052 | -1/Garrison | Triggered checkpoint 23142 | -1/Garrison | Spotted B-99 Colossus 23157 | -1/Garrison | P-80 Master assimilated allied Warden 10a 23226 | -1/Garrison | Lost 7 parts (2n2u3w) 23256 | -1/Garrison | Triggered checkpoint 23260 | -1/Garrison | Triggered checkpoint 23366 | -1/Garrison | Released all parts (12) 23371 | -1/Garrison | Core integrity fell below 50% 23388 | -1/Garrison | Triggered checkpoint 23393 | -1/Garrison | Garrison Relay disabled 23396 | -1/Garrison | Lost 13 parts (1p4n2u6w) 23418 | -1/Garrison | Discovered new exit (range 10) 23426 | -1/Garrison | Expanded RIF knowledge: Command Fork 23428 | -1/Garrison | Entered Access 23680 | -1/Access | Build established: Mutant 23700 | -1/Access | Core integrity fell below 20% 23761 | -1/Access | System corruption reached 10% 23794 | -1/Access | Spotted B-99 Colossus 23795 | -1/Access | Spotted B-99 Colossus 23796 | -1/Access | Destroyed by B-99 Colossus with Multirail Last Messages --------------- 23760_ HP>HD1X|:PKY,Q6X:QGVJ9DTXPRMVUF91|ZCTQR 23760_ O-32 Director: "IFF HANDSHAKE FAILED. SECURING TERMINAL." 23760_ P-80 Master resets P-80 Master, system corruption cleaned. 23760_ Penetrated by Slug. 23760_ K-01 Serf collects debris. 23762_ The unstable cave ceiling collapses. 23762_ Penetrated by Slug. 23763_ K-01 Serf collects debris. 23764_ The unstable cave ceiling collapses. 23765_ RIF reveals location of hidden door. 23776_ Detecting nearby Garrison Access. 23784_ Dropped Hvy. Gauss Cannon. 23784_ Acquired Hvy. Disruptor Cannon. 23787_ Door malfunctions. 23789_ Critical hit. 23789_ Arm. Heavy Treads destroyed. 23794_ Critical hit. 23794_ Biometal Heavy Treads destroyed. 23796_ Knocked back. 23796_ Penetrated by Slug. Map ----- +----------------------------------------------------+ | ?# ## """" / ?????? | | ?# ## """" # ?????? | | ####+######+####[ """" ## ###############+##?? | | + """" ## #???# ### | | !# "" ## #???# # | | *# "" ## #???# " # | | ############## ##### =! """ # | | # + / =! """ # | | # ! ####### " # | | # """"" #?????# + | | ####+### # """""""" #?????# ! # | | ?? # # """""""" #?????# # | | ] # # """"" #?????# ! " "" # | | # / #?????# "R"" ### | | # # ] #?????# """ #?? | | "" # # #?????##############?? | | "" # + = #????????????????????? | | """" ######### == #????????????????????? | | """" #???????# ! == #?#######????????????" | | "" #???????##############? "????????????" | | ?" #????????????????????? BB "????????????" | | ??? #?????????????######## BB "????????????" | | ??? ############### "????????????" | | ???###### # "????????????" | | ????????# # "????????????" | | ????????# # @ "????????????" | | ????????# * # ### BB "????????????" | | ????????+ # #?????? "????????????" | | ????????# # #??????????????????????" | | ????????# # #????????????????######" | | ????????# # #????????????????# | | ????????# ]=# #????????????????# | | ????????# ] # #???????????????### | | ????????# # #???????????????# | | ????????# # #??????????????## | | ????????##########/###pp #??????????????# | | ??????????????# #??????????????# | | ??????????????# p #??????????????## | | ??????????????# p #???????????????# | | ??????????????# w #???????????????# | | ??????????????# ##############?????##### | | ??????????????# # #?????# + | | ?????########## p# #?????# ### | | ?? # #?????# #?# | | ?? # #??####+########## | | ?? + #??# ## | | ??? # #??# + | | ???############ # ! "" #??# # | | ??????????????# # "" #??# # | | ??????????????# # """""" #### " # | +----------------------------------------------------+ Best States ------------- Heat Dissipation 141 Coolant Potential 80 Energy Generation 25 Energy Capacity 350 Matter Stores 450 Matter Capacity 450 Sight Range 20 Robot Scan Range 16 Terrain Scan Density 10 Cloak Strength 3 Base Temperature (-) 200 Corruption Prevention 20 Armor Coverage 1200 Resistance: KI 40 Resistance: TH 15 Resistance: EM 20 Propulsion Shielding 66 Utility Shielding 66 Phase Shifting 5 Evasion (%) 50 Targeting Accuracy 16 Target Analysis 8 Recoil Reduction 4 Defensive Hacking 28 Relay Coupler Types 236 Relay Coupler Value 7 Item Schematics ----------------- Hcp. Storage Unit | -10/Materials | Hacked Lrg. Storage Unit | -10/Materials | Hacked Arm. Huge Wheel | -8/Materials | Scanalyzed Hvy. Armor Plating | -8/Materials | Scanalyzed Robot Schematics ------------------ None Fabricated ------------ Arm. Huge Wheel | x2 | -4/Factory Alien Tech Used ----------------- None Achievements -------------- Factory Defaults Challenges ------------ None Game ------ Seed HoverKineticExtractor Manual? 0 Play Time 05:38:36 Cumulative 125.0 hours Start 2021.06.15 @ 14:59:38 End 2021.06.15 @ 21:04:48 Sessions 1 Manual Loads 0 Difficulty Rogue Special Mode None Game No. 33 Rogue 16 Adventurer 17 Explorer 0 Win Type - Total 6 Types 5/0/0/1/0/0/0/0/0 Lore% 63 Gallery% 62 Achievement% 56 Wizard Run 0 Options --------- ASCII 0 Keyboard 0 Movement Arrows Keybinds 0 Fullscreen 1 Font 28/Dina Map View 72x54 Tactical HUD 1 Map Filters NONE Filters NONE Steam 1 RUN: aa5e9610-1332-49af-bb14-ac144704c0fe